fUST/lending_fUST_20260509
["ID","MTS","AMOUNT","RATE_DAILY","PERIOD"]
[421872910,1778257845000,-500.0,0.00013698,2]
[421872906,1778257845000,-500.0,0.00013698,2]
[421872904,1778257845000,-500.0,0.00013698,2]
[421872913,1778257845000,-516.89,0.00013698,2]
[421872914,1778257845000,-516.89,0.00013698,2]
[421872915,1778257845000,-516.89,0.00013698,2]
[421872905,1778257845000,-500.0,0.00013698,2]
[421872917,1778257845000,-516.89,0.00013698,2]
[421872924,1778257845000,-516.89,0.00013698,2]
[421872926,1778257845000,-516.89,0.00013698,2]
[421872927,1778257845000,-516.89,0.00013698,2]
[421872925,1778257845000,-516.89,0.00013698,2]
[421872929,1778257845000,-500.0,0.00013698,2]
[421872921,1778257845000,-516.89,0.00013698,2]
[421872936,1778257845000,-500.0,0.00013698,2]
[421872920,1778257845000,-516.89,0.00013698,2]
[421872919,1778257845000,-516.89,0.00013698,2]
[421872923,1778257845000,-516.89,0.00013698,2]
[421872918,1778257845000,-516.89,0.00013698,2]
[421872922,1778257845000,-516.89,0.00013698,2]
[421872916,1778257845000,-516.89,0.00013698,2]
[421873003,1778257846000,-2000.0,0.00013808,2]
[421873012,1778257846000,-200.0,0.00013913,2]
[421873011,1778257846000,-864.0,0.00013861,2]
[421873000,1778257846000,-2000.0,0.00013808,2]
[421872995,1778257846000,-2000.0,0.00013808,2]
[421872994,1778257846000,-2000.0,0.00013808,2]
[421872996,1778257846000,-2000.0,0.00013808,2]
[421872993,1778257846000,-2000.0,0.00013808,2]
[421873005,1778257846000,-2000.0,0.00013808,2]
[421872991,1778257846000,-2000.0,0.00013808,2]
[421873001,1778257846000,-2000.0,0.00013808,2]
[421872992,1778257846000,-2000.0,0.00013808,2]
[421873014,1778257846000,-500.0,0.00013971,2]
[421873009,1778257846000,-2000.0,0.00013808,2]
[421873004,1778257846000,-2000.0,0.00013808,2]
[421873008,1778257846000,-2000.0,0.00013808,2]
[421873007,1778257846000,-2000.0,0.00013808,2]
[421873006,1778257846000,-2000.0,0.00013808,2]
[421873017,1778257846000,-500.0,0.00013972,2]
[421873013,1778257846000,-256.15,0.00013965,2]
[421873016,1778257846000,-500.0,0.00013972,2]
[421873015,1778257846000,-516.89,0.00013971,2]
[421873018,1778257846000,-500.0,0.00013972,2]
[421873019,1778257846000,-500.0,0.00013972,2]
[421872990,1778257846000,-450.33688838,0.00013764,2]
[421873020,1778257846000,-500.0,0.00013972,2]
[421873010,1778257846000,-2000.0,0.00013808,2]
[421872988,1778257846000,-151.0,0.00013744,2]
[421872977,1778257846000,-500.0,0.00013698,2]
[421872989,1778257846000,-325.7485516,0.00013744,2]
[421873023,1778257846000,-500.0,0.00013972,2]
[421872972,1778257846000,-500.0,0.00013698,2]
[421872974,1778257846000,-500.0,0.00013698,2]
[421872973,1778257846000,-1487.62,0.00013698,2]
[421872963,1778257846000,-500.0,0.00013698,2]
[421872967,1778257846000,-500.0,0.00013698,2]
[421872965,1778257846000,-759.64,0.00013698,2]
[421872969,1778257846000,-1610.63,0.00013698,2]
[421872971,1778257846000,-171.80209066,0.00013698,2]
[421872968,1778257846000,-790.35,0.00013698,2]
[421872966,1778257846000,-620.56,0.00013698,2]
[421872970,1778257846000,-481.76,0.00013698,2]
[421872998,1778257846000,-2000.0,0.00013808,2]
[421872976,1778257846000,-503.3,0.00013698,2]
[421872980,1778257846000,-500.0,0.00013698,2]
[421872978,1778257846000,-1359.66,0.00013698,2]
[421872987,1778257846000,-151.2875088,0.00013744,2]
[421872979,1778257846000,-922.51,0.00013698,2]
[421872986,1778257846000,-443.5801733,0.00013717,7]
[421872975,1778257846000,-1425.53,0.00013698,2]
[421872982,1778257846000,-151.0,0.00013699,2]
[421872984,1778257846000,-1000.0,0.00013699,2]
[421872983,1778257846000,-151.0,0.00013699,2]
[421872981,1778257846000,-500.0,0.00013698,2]
[421872999,1778257846000,-2000.0,0.00013808,2]
[421872997,1778257846000,-2000.0,0.00013808,2]
[421872985,1778257846000,-1000.0,0.00013699,2]
[421873022,1778257846000,-500.0,0.00013972,2]
[421872964,1778257846000,-518.01,0.00013698,2]
[421873024,1778257846000,-525.29,0.00013972,2]
[421873053,1778257846000,-1359.66,0.00013972,2]
[421873058,1778257846000,-2000.0,0.00014,7]
[421873059,1778257846000,-2000.0,0.00014,7]
[421873060,1778257846000,-1836.74,0.00014,7]
[421873061,1778257846000,-443.5801733,0.00014052,7]
[421873064,1778257846000,-500.0,0.00014183,2]
[421873067,1778257846000,-929.249428,0.0001423,2]
[421873071,1778257846000,-500.0,0.00014246,2]
[421873066,1778257846000,-160.0,0.0001423,2]
[421873069,1778257846000,-500.0,0.00014245,2]
[421873070,1778257846000,-516.89,0.00014245,2]
[421873065,1778257846000,-500.0,0.00014228,2]
[421873068,1778257846000,-1698.498856,0.0001423,2]
[421873072,1778257846000,-500.0,0.00014246,2]
[421873063,1778257846000,-443.5801733,0.00014052,7]
[421873074,1778257846000,-500.0,0.00014246,2]
[421873073,1778257846000,-500.0,0.00014246,2]
[421873076,1778257846000,-500.0,0.00014246,2]
[421873075,1778257846000,-500.0,0.00014246,2]
[421873080,1778257846000,-842.7674,0.00014246,2]
[421873079,1778257846000,-525.29,0.00014246,2]
[421873077,1778257846000,-500.0,0.00014246,2]
[421873078,1778257846000,-500.0,0.00014246,2]
[421873021,1778257846000,-500.0,0.00013972,2]
[421873081,1778257846000,-500.0,0.00014246,2]
[421873084,1778257846000,-218.4,0.00014246,2]
[421873082,1778257846000,-565.24,0.00014246,2]
[421873052,1778257846000,-503.3,0.00013972,2]
[421873055,1778257846000,-922.51,0.00013972,2]
[421873083,1778257846000,-500.0,0.00014246,2]
[421873057,1778257846000,-500.0,0.00013972,2]
[421873056,1778257846000,-500.0,0.00013972,2]
[421873026,1778257846000,-500.0,0.00013972,2]
[421873027,1778257846000,-565.24,0.00013972,2]
[421873035,1778257846000,-500.0,0.00013972,2]
[421873029,1778257846000,-500.0,0.00013972,2]
[421873032,1778257846000,-1281.13,0.00013972,2]
[421873028,1778257846000,-500.0,0.00013972,2]
[421873031,1778257846000,-500.0,0.00013972,2]
[421873036,1778257846000,-799.81,0.00013972,2]
[421873030,1778257846000,-500.0,0.00013972,2]
[421873033,1778257846000,-1058.63,0.00013972,2]
[421873034,1778257846000,-1367.21,0.00013972,2]
[421873044,1778257846000,-620.56,0.00013972,2]
[421873025,1778257846000,-842.7674,0.00013972,2]
[421873045,1778257846000,-500.0,0.00013972,2]
[421873046,1778257846000,-790.35,0.00013972,2]
[421873049,1778257846000,-1487.62,0.00013972,2]
[421873042,1778257846000,-518.01,0.00013972,2]
[421873041,1778257846000,-429.1,0.00013972,2]
[421873039,1778257846000,-500.0,0.00013972,2]
[421873050,1778257846000,-500.0,0.00013972,2]
[421873040,1778257846000,-1468.56,0.00013972,2]
[421873048,1778257846000,-500.0,0.00013972,2]
[421873043,1778257846000,-759.64,0.00013972,2]
[421873051,1778257846000,-1425.53,0.00013972,2]
[421873037,1778257846000,-7651.3,0.00013972,2]
[421873038,1778257846000,-226.2,0.00013972,2]
[421873047,1778257846000,-1610.63,0.00013972,2]
[421873127,1778257847000,-200.0,0.00014338,2]
[421873125,1778257847000,-500.0,0.00014314,2]
[421873128,1778257847000,-500.0,0.00014344,2]
[421873119,1778257847000,-152.0,0.00014313,7]
[421873118,1778257847000,-152.0,0.00014313,7]
[421873121,1778257847000,-500.0,0.00014314,2]
[421873124,1778257847000,-500.0,0.00014314,2]
[421873120,1778257847000,-500.0,0.00014314,2]
[421873122,1778257847000,-500.0,0.00014314,2]
[421873123,1778257847000,-500.0,0.00014314,2]
[421873116,1778257847000,-234.980006,0.00014253,7]
[421873132,1778257847000,-164.13521246,0.00014344,2]
[421873130,1778257847000,-500.0,0.00014344,2]
[421873140,1778257847000,-500.0,0.00014344,2]
[421873129,1778257847000,-532.82588762,0.00014344,2]
[421873131,1778257847000,-500.0,0.00014344,2]
[421873133,1778257847000,-500.0,0.00014344,2]
[421873137,1778257847000,-500.0,0.00014344,2]
[421873134,1778257847000,-521.85455091,0.00014344,2]
[421873136,1778257847000,-500.0,0.00014344,2]
[421873139,1778257847000,-500.0,0.00014344,2]
[421873117,1778257847000,-309.960013,0.00014253,7]
[421873126,1778257847000,-500.0,0.00014314,2]
[421873111,1778257847000,-1359.66,0.00014246,2]
[421873095,1778257847000,-799.81,0.00014246,2]
[421873113,1778257847000,-500.0,0.00014246,2]
[421873086,1778257847000,-500.0,0.00014246,2]
[421873085,1778257847000,-500.0,0.00014246,2]
[421873088,1778257847000,-1281.13,0.00014246,2]
[421873096,1778257847000,-7651.3,0.00014246,2]
[421873091,1778257847000,-1367.21,0.00014246,2]
[421873100,1778257847000,-759.64,0.00014246,2]
[421873089,1778257847000,-1058.63,0.00014246,2]
[421873101,1778257847000,-500.0,0.00014246,2]
[421873098,1778257847000,-1468.56,0.00014246,2]
[421873093,1778257847000,-500.0,0.00014246,2]
[421873097,1778257847000,-500.0,0.00014246,2]
[421873099,1778257847000,-518.01,0.00014246,2]
[421873102,1778257847000,-620.56,0.00014246,2]
[421873104,1778257847000,-790.35,0.00014246,2]
[421873114,1778257847000,-500.0,0.00014246,2]
[421873115,1778257847000,-160.0,0.00014253,7]
[421873106,1778257847000,-500.0,0.00014246,2]
[421873105,1778257847000,-1610.63,0.00014246,2]
[421873109,1778257847000,-1425.53,0.00014246,2]
[421873107,1778257847000,-1487.62,0.00014246,2]
[421873103,1778257847000,-500.0,0.00014246,2]
[421873108,1778257847000,-500.0,0.00014246,2]
[421873112,1778257847000,-922.51,0.00014246,2]
[421873110,1778257847000,-503.3,0.00014246,2]
[421873135,1778257847000,-500.0,0.00014344,2]
[421873138,1778257847000,-500.0,0.00014344,2]
[421873145,1778257847000,-500.0,0.00014344,2]
[421873170,1778257847000,-500.0,0.0001452,2]
[421873169,1778257847000,-500.0,0.0001452,2]
[421873176,1778257847000,-500.0,0.0001452,2]
[421873186,1778257847000,-7651.3,0.0001452,2]
[421873185,1778257847000,-799.81,0.0001452,2]
[421873175,1778257847000,-558.0637,0.0001452,2]
[421873177,1778257847000,-565.24,0.0001452,2]
[421873178,1778257847000,-500.0,0.0001452,2]
[421873182,1778257847000,-1058.63,0.0001452,2]
[421873180,1778257847000,-500.0,0.0001452,2]
[421873183,1778257847000,-1367.21,0.0001452,2]
[421873179,1778257847000,-331.09,0.0001452,2]
[421873181,1778257847000,-1281.13,0.0001452,2]
[421873187,1778257847000,-500.0,0.0001452,2]
[421873188,1778257847000,-1468.56,0.0001452,2]
[421873189,1778257847000,-518.01,0.0001452,2]
[421873191,1778257847000,-620.56,0.0001452,2]
[421873190,1778257847000,-759.64,0.0001452,2]
[421873192,1778257847000,-500.0,0.0001452,2]
[421873194,1778257847000,-1610.63,0.0001452,2]
[421873195,1778257847000,-500.0,0.0001452,2]
[421873193,1778257847000,-790.35,0.0001452,2]
[421873143,1778257847000,-213.62354478,0.00014344,2]
[421873172,1778257847000,-224.86,0.0001452,2]
[421873171,1778257847000,-204.37,0.0001452,2]
[421873184,1778257847000,-500.0,0.0001452,2]
[421873173,1778257847000,-525.29,0.0001452,2]
[421873147,1778257847000,-160.0,0.00014406,7]
[421873164,1778257847000,-516.93961715,0.00014519,2]
[421873144,1778257847000,-500.0,0.00014344,2]
[421873146,1778257847000,-500.0,0.00014371,2]
[421873149,1778257847000,-18576.355993,0.00014406,7]
[421873148,1778257847000,-9368.177996,0.00014406,7]
[421873150,1778257847000,-823.0,0.00014413,2]
[421873153,1778257847000,-6339.20189612,0.00014465,2]
[421873159,1778257847000,-373.12229636,0.00014519,2]
[421873152,1778257847000,-2820.24330825,0.00014465,2]
[421873156,1778257847000,-500.0,0.000145,2]
[421873158,1778257847000,-500.0,0.00014519,2]
[421873151,1778257847000,-705.06082706,0.00014465,2]
[421873167,1778257847000,-500.0,0.0001452,2]
[421873160,1778257847000,-516.89,0.00014519,2]
[421873154,1778257847000,-500.0,0.0001447,2]
[421873157,1778257847000,-500.0,0.00014519,2]
[421873162,1778257847000,-516.89,0.00014519,2]
[421873155,1778257847000,-500.4538921,0.000145,2]
[421873165,1778257847000,-473.98,0.0001452,2]
[421873174,1778257847000,-508.50927357,0.0001452,2]
[421873163,1778257847000,-516.89,0.00014519,2]
[421873166,1778257847000,-500.0,0.0001452,2]
[421873161,1778257847000,-516.89,0.00014519,2]
[421873168,1778257847000,-304.36,0.0001452,2]
[421873237,1778257848000,-151.0,0.000147,2]
[421873238,1778257848000,-143384.58695167,0.000147,2]
[421873226,1778257848000,-500.0,0.00014673,2]
[421873240,1778257848000,-1000.0,0.00014731,2]
[421873239,1778257848000,-214.63102837,0.00014712,3]
[421873230,1778257848000,-441662.79216953,0.000147,5]
[421873228,1778257848000,-500.0,0.00014673,2]
[421873233,1778257848000,-151.0,0.000147,2]
[421873231,1778257848000,-151.0,0.000147,2]
[421873229,1778257848000,-599.60298507,0.00014694,2]
[421873227,1778257848000,-500.0,0.00014673,2]
[421873247,1778257848000,-593.47910645,0.00014794,2]
[421873232,1778257848000,-151.0,0.000147,2]
[421873245,1778257848000,-272.72491596,0.00014794,2]
[421873250,1778257848000,-462.15,0.00014794,2]
[421873246,1778257848000,-500.0,0.00014794,2]
[421873242,1778257848000,-200.0,0.00014764,2]
[421873244,1778257848000,-1000.0,0.00014776,2]
[421873243,1778257848000,-250.0,0.00014776,2]
[421873248,1778257848000,-500.0,0.00014794,2]
[421873249,1778257848000,-525.29,0.00014794,2]
[421873251,1778257848000,-565.24,0.00014794,2]
[421873260,1778257848000,-612.08,0.00014794,2]
[421873261,1778257848000,-1468.56,0.00014794,2]
[421873262,1778257848000,-518.01,0.00014794,2]
[421873252,1778257848000,-500.0,0.00014794,2]
[421873253,1778257848000,-500.0,0.00014794,2]
[421873224,1778257848000,-578.20924308,0.00014639,2]
[421873241,1778257848000,-621.78829552,0.00014749,2]
[421873235,1778257848000,-151.0,0.000147,2]
[421873202,1778257848000,-500.0,0.0001452,2]
[421873225,1778257848000,-704.545,0.00014671,2]
[421873197,1778257848000,-500.0,0.0001452,2]
[421873196,1778257848000,-1487.62,0.0001452,2]
[421873198,1778257848000,-1425.53,0.0001452,2]
[421873200,1778257848000,-1359.66,0.0001452,2]
[421873210,1778257848000,-5000.0,0.00014544,2]
[421873199,1778257848000,-503.3,0.0001452,2]
[421873211,1778257848000,-5000.0,0.00014544,2]
[421873203,1778257848000,-500.0,0.0001452,2]
[421873205,1778257848000,-445.202766,0.00014529,2]
[421873201,1778257848000,-922.51,0.0001452,2]
[421873206,1778257848000,-537.6845,0.00014529,2]
[421873207,1778257848000,-537.6845,0.00014529,2]
[421873209,1778257848000,-5000.0,0.00014544,2]
[421873204,1778257848000,-151.0,0.00014529,2]
[421873208,1778257848000,-6147.41492075,0.00014544,2]
[421873212,1778257848000,-5000.0,0.00014544,2]
[421873214,1778257848000,-325.7699083,0.00014568,2]
[421873215,1778257848000,-455.7334323,0.00014568,2]
[421873220,1778257848000,-2220.796,0.00014592,2]
[421873217,1778257848000,-557.5788265,0.00014584,2]
[421873218,1778257848000,-1411.0,0.00014592,2]
[421873216,1778257848000,-500.0,0.00014577,2]
[421873219,1778257848000,-647.0,0.00014592,2]
[421873213,1778257848000,-325.6307201,0.00014568,2]
[421873223,1778257848000,-500.0,0.00014633,2]
[421873221,1778257848000,-185.0,0.00014592,2]
[421873222,1778257848000,-442.0,0.00014592,2]
[421873256,1778257848000,-1367.21,0.00014794,2]
[421873234,1778257848000,-151.0,0.000147,2]
[421873236,1778257848000,-151.0,0.000147,2]
[421873255,1778257848000,-1058.63,0.00014794,2]
[421873297,1778257848000,-1000.0,0.00014892,2]
[421873258,1778257848000,-799.81,0.00014794,2]
[421873293,1778257848000,-220.28444598,0.00014892,2]
[421873298,1778257848000,-357.93911806,0.00014892,2]
[421873301,1778257848000,-1000.0,0.00014892,2]
[421873292,1778257848000,-1000.0,0.00014892,2]
[421873296,1778257848000,-1000.0,0.00014892,2]
[421873294,1778257848000,-694.19260638,0.00014892,2]
[421873295,1778257848000,-1000.0,0.00014892,2]
[421873303,1778257848000,-193.58393974,0.000149,2]
[421873302,1778257848000,-193.58393973,0.000149,2]
[421873305,1778257848000,-793.0,0.000149,2]
[421873304,1778257848000,-193.58393973,0.000149,2]
[421873313,1778257848000,-71459.04635157,0.00015,2]
[421873314,1778257848000,-1353.24382249,0.00015,2]
[421873299,1778257848000,-1000.0,0.00014892,2]
[421873306,1778257848000,-13616.2922332,0.00014904,2]
[421873310,1778257848000,-480.640923,0.00014966,7]
[421873309,1778257848000,-1900.737466,0.00014941,2]
[421873312,1778257848000,-1001.26519672,0.00015,2]
[421873307,1778257848000,-693.3919763,0.00014914,2]
[421873308,1778257848000,-1000.0,0.00014919,2]
[421873316,1778257848000,-745.65223616,0.00015024,2]
[421873318,1778257848000,-343.44,0.00015068,2]
[421873315,1778257848000,-10146.07077257,0.00015,2]
[421873320,1778257848000,-525.29,0.00015068,2]
[421873321,1778257848000,-565.24,0.00015068,2]
[421873322,1778257848000,-500.0,0.00015068,2]
[421873319,1778257848000,-500.0,0.00015068,2]
[421873254,1778257848000,-1281.13,0.00014794,2]
[421873311,1778257848000,-719.04747942,0.00014969,2]
[421873300,1778257848000,-1000.0,0.00014892,2]
[421873317,1778257848000,-350.89786422,0.00015048,2]
[421873291,1778257848000,-1139.34037525,0.00014892,2]
[421873290,1778257848000,-659.2899464,0.00014892,2]
[421873259,1778257848000,-7651.3,0.00014794,2]
[421873257,1778257848000,-500.0,0.00014794,2]
[421873268,1778257848000,-500.0,0.00014794,2]
[421873271,1778257848000,-1425.53,0.00014794,2]
[421873270,1778257848000,-500.0,0.00014794,2]
[421873272,1778257848000,-503.3,0.00014794,2]
[421873263,1778257848000,-759.64,0.00014794,2]
[421873264,1778257848000,-620.56,0.00014794,2]
[421873265,1778257848000,-500.0,0.00014794,2]
[421873266,1778257848000,-790.35,0.00014794,2]
[421873267,1778257848000,-1610.63,0.00014794,2]
[421873273,1778257848000,-1359.66,0.00014794,2]
[421873275,1778257848000,-500.0,0.00014794,2]
[421873269,1778257848000,-1487.62,0.00014794,2]
[421873276,1778257848000,-500.0,0.00014794,2]
[421873274,1778257848000,-922.51,0.00014794,2]
[421873284,1778257848000,-1000.0,0.00014862,2]
[421873277,1778257848000,-644.79446246,0.00014804,2]
[421873289,1778257848000,-173.37243774,0.00014877,30]
[421873282,1778257848000,-523.84359615,0.00014862,2]
[421873278,1778257848000,-668.65185757,0.00014859,2]
[421873281,1778257848000,-1000.0,0.00014862,2]
[421873279,1778257848000,-1000.0,0.00014862,2]
[421873287,1778257848000,-216.68363186,0.00014877,30]
[421873283,1778257848000,-1000.0,0.00014862,2]
[421873280,1778257848000,-1000.0,0.00014862,2]
[421873288,1778257848000,-173.37243775,0.00014877,30]
[421873286,1778257848000,-1000.0,0.00014862,2]
[421873285,1778257848000,-250.0,0.00014862,2]
[421873350,1778257849000,-773.2413689,0.00015079,2]
[421873358,1778257849000,-1063.70865761,0.00015181,2]
[421873357,1778257849000,-158.94795348,0.00015135,2]
[421873360,1778257849000,-89395.66386142,0.000152,2]
[421873356,1778257849000,-801.85129955,0.00015134,2]
[421873353,1778257849000,-1000.0,0.00015125,2]
[421873355,1778257849000,-12774.788177,0.00015126,7]
[421873352,1778257849000,-160.0,0.00015122,3]
[421873351,1778257849000,-7707.21334406,0.000151,2]
[421873354,1778257849000,-3438.69738,0.00015126,7]
[421873359,1778257849000,-831.51979763,0.00015189,2]
[421873366,1778257849000,-151.0,0.000152,2]
[421873361,1778257849000,-22755.42411355,0.000152,2]
[421873363,1778257849000,-1353.24382249,0.000152,2]
[421873364,1778257849000,-10146.07077257,0.000152,2]
[421873368,1778257849000,-151.0,0.000152,2]
[421873367,1778257849000,-151.0,0.000152,2]
[421873365,1778257849000,-151.0,0.000152,2]
[421873370,1778257849000,-151.0,0.000152,2]
[421873380,1778257849000,-894.19061326,0.00015299,2]
[421873349,1778257849000,-557.5788265,0.00015077,2]
[421873369,1778257849000,-287.937893,0.000152,2]
[421873362,1778257849000,-25116.51053955,0.000152,2]
[421873347,1778257849000,-174.73012077,0.00015077,2]
[421873328,1778257849000,-799.81,0.00015068,2]
[421873340,1778257849000,-1425.53,0.00015068,2]
[421873372,1778257849000,-1000.0,0.00015221,2]
[421873323,1778257849000,-500.0,0.00015068,2]
[421873326,1778257849000,-1367.21,0.00015068,2]
[421873327,1778257849000,-500.0,0.00015068,2]
[421873325,1778257849000,-1058.63,0.00015068,2]
[421873324,1778257849000,-1281.13,0.00015068,2]
[421873329,1778257849000,-7651.3,0.00015068,2]
[421873331,1778257849000,-518.01,0.00015068,2]
[421873338,1778257849000,-1487.62,0.00015068,2]
[421873330,1778257849000,-1468.56,0.00015068,2]
[421873334,1778257849000,-500.0,0.00015068,2]
[421873332,1778257849000,-759.64,0.00015068,2]
[421873337,1778257849000,-500.0,0.00015068,2]
[421873333,1778257849000,-620.56,0.00015068,2]
[421873336,1778257849000,-1610.63,0.00015068,2]
[421873335,1778257849000,-790.35,0.00015068,2]
[421873339,1778257849000,-215.7,0.00015068,2]
[421873342,1778257849000,-1359.66,0.00015068,2]
[421873343,1778257849000,-922.51,0.00015068,2]
[421873341,1778257849000,-503.3,0.00015068,2]
[421873345,1778257849000,-500.0,0.00015068,2]
[421873346,1778257849000,-726.674951,0.00015068,2]
[421873344,1778257849000,-500.0,0.00015068,2]
[421873348,1778257849000,-461.67526834,0.00015077,2]
[421873371,1778257849000,-151.0,0.000152,2]
[421873400,1778257849000,-537.34,0.00015342,2]
[421873375,1778257849000,-15666.23854134,0.00015231,2]
[421873399,1778257849000,-620.56,0.00015342,2]
[421873397,1778257849000,-518.01,0.00015342,2]
[421873379,1778257849000,-2916.52773395,0.00015288,2]
[421873398,1778257849000,-759.64,0.00015342,2]
[421873407,1778257849000,-1359.66,0.00015342,2]
[421873410,1778257849000,-500.0,0.00015342,2]
[421873412,1778257849000,-268.7174142,0.00015356,2]
[421873409,1778257849000,-500.0,0.00015342,2]
[421873408,1778257849000,-922.51,0.00015342,2]
[421873411,1778257849000,-927.27566595,0.00015354,2]
[421873413,1778257849000,-177.91455616,0.00015382,2]
[421873414,1778257849000,-961.58486559,0.00015409,2]
[421873417,1778257849000,-1165.38839567,0.0001541,2]
[421873416,1778257849000,-1500.0,0.0001541,2]
[421873415,1778257849000,-422.56477313,0.0001541,2]
[421873419,1778257849000,-1500.0,0.0001541,2]
[421873418,1778257849000,-1500.0,0.0001541,2]
[421873420,1778257849000,-1500.0,0.0001541,2]
[421873422,1778257849000,-1500.0,0.0001544,2]
[421873424,1778257849000,-1500.0,0.0001544,2]
[421873425,1778257849000,-1500.0,0.0001544,2]
[421873423,1778257849000,-1500.0,0.0001544,2]
[421873421,1778257849000,-350.0,0.0001541,2]
[421873402,1778257849000,-1610.63,0.00015342,2]
[421873396,1778257849000,-1468.56,0.00015342,2]
[421873401,1778257849000,-790.35,0.00015342,2]
[421873403,1778257849000,-500.0,0.00015342,2]
[421873373,1778257849000,-1000.0,0.00015221,2]
[421873377,1778257849000,-1000.0,0.00015247,2]
[421873376,1778257849000,-862.28603014,0.00015244,2]
[421873374,1778257849000,-1000.0,0.00015221,2]
[421873378,1778257849000,-1500.0,0.00015279,2]
[421873385,1778257849000,-500.0,0.00015342,2]
[421873382,1778257849000,-10146.07077257,0.000153,2]
[421873381,1778257849000,-1353.24382249,0.000153,2]
[421873383,1778257849000,-350.0,0.00015324,2]
[421873386,1778257849000,-525.29,0.00015342,2]
[421873388,1778257849000,-500.0,0.00015342,2]
[421873384,1778257849000,-501.94985026,0.00015324,2]
[421873392,1778257849000,-1367.21,0.00015342,2]
[421873387,1778257849000,-565.24,0.00015342,2]
[421873395,1778257849000,-7651.3,0.00015342,2]
[421873404,1778257849000,-1487.62,0.00015342,2]
[421873394,1778257849000,-799.81,0.00015342,2]
[421873405,1778257849000,-1425.53,0.00015342,2]
[421873393,1778257849000,-593.2,0.00015342,2]
[421873391,1778257849000,-1058.63,0.00015342,2]
[421873390,1778257849000,-1281.13,0.00015342,2]
[421873389,1778257849000,-500.0,0.00015342,2]
[421873406,1778257849000,-503.3,0.00015342,2]
[421873435,1778257850000,-997.16350561,0.00015464,2]
[421873426,1778257850000,-1424.3408563,0.0001544,2]
[421873429,1778257850000,-874.62311215,0.0001544,2]
[421873428,1778257850000,-75.6591437,0.0001544,2]
[421873430,1778257850000,-684.13341096,0.0001544,2]
[421873431,1778257850000,-794.2615,0.0001544,2]
[421873432,1778257850000,-1255.20000005,0.00014764,2]
[421873433,1778257850000,-1333.81999995,0.00014764,2]
[421873434,1778257850000,-21.60508904,0.0001544,2]
[421873440,1778257850000,-5000.0,0.00015465,2]
[421873427,1778257850000,-352.07457219,0.00010749,2]
[421873441,1778257850000,-1500.0,0.00015467,2]
[421873447,1778257850000,-9495.90019605,0.00015494,2]
[421873448,1778257850000,-1382.95938831,0.00015494,2]
[421873446,1778257850000,-10341.37781175,0.0001549,2]
[421873444,1778257850000,-155.0,0.00015476,2]
[421873445,1778257850000,-4612.0,0.00015476,2]
[421873436,1778257850000,-5016.74592153,0.00015465,2]
[421873442,1778257850000,-754.0,0.00015476,2]
[421873439,1778257850000,-5000.0,0.00015465,2]
[421873443,1778257850000,-292.0,0.00015476,2]
[421873438,1778257850000,-5000.0,0.00015465,2]
[421873437,1778257850000,-5000.0,0.00015465,2]
[421873451,1778257998000,500.0,0.00013698,120]
[421873501,1778259032000,-307.68605638,9.67e-05,2]